[Event "22nd ETCC Women 2019"]
[Site "Batumi"]
[Date "2019.10.24"]
[Round "1.1"]
[White "Shvayger, Yuliya"]
[Black "Goryachkina, Aleksandra"]
[Result "1/2-1/2"]
[ECO "C07"]
[WhiteElo "2336"]
[BlackElo "2575"]
[Annotator "ChessBase"]
[PlyCount "57"]
[EventDate "2019.10.24"]
[EventType "team-tourn"]
[EventCountry "GEO"]
[SourceTitle "playchess.com"]
[Source "ChessBase"]
[SourceQuality "1"]
[WhiteTeam "Israel"]
[BlackTeam "Russia"]
[WhiteTeamCountry "ISR"]
[BlackTeamCountry "RUS"]
[TimeControl "40/5400+30:1800+30"]

1. e4 {[%emt 0:00:00]} e6 {[%emt 0:00:00]} 2. d4 {[%emt 0:00:00]} d5 {[%emt 0:00:00]} 3. Nd2 {[%emt 0:00:27]} c5 {[%emt 0:00:08]} 4. exd5 {[%emt 0:01:11]} Qxd5 {[%emt 0:00:09]} 5. dxc5 {[%emt 0:00:30]} Qxc5 {[%emt 0:00:25]} 6. Ne4 {[%emt 0:01:36]} Qb4+ {[%emt 0:08:25]} 7. Nc3 {[%emt 0:00:09]} Nf6 {[%emt 0:01:36]} 8. a3 {[%emt 0:00:44]} Qb6 {[%emt 0:04:20]} 9. Be3 {[%emt 0:01:09]} Bc5 {[%emt 0:02:38]} 10. Na4 {[%emt 0:00:15]} Qa5+ {[%emt 0:00:10]} 11. b4 {[%emt 0:00:15]} Qxa4 {[%emt 0:00:09]} 12. Bxc5 {[%emt 0:00:07]} Nbd7 {[%emt 0:01:54]} 13. Be3 {[%emt 0:05:40]} a5 {[%emt 0:03:40]} 14. b5 {[%emt 0:17:50]} O-O {[%emt 0:05:13]} 15. c4 {[%emt 0:01:12]} Qxd1+ {[%emt 0:00:12]} 16. Rxd1 {[%emt 0:00:02]} Ne4 {[%emt 0:06:26]} 17. f3 {[%emt 0:03:45]} Nec5 {[%emt 0:02:51]} 18. Ne2 {[%emt 0:00:29]} b6 {[%emt 0:03:56]} 19. Nc3 {[%emt 0:00:33]} Bb7 {[%emt 0:13:17]} 20. Rd6 {[%emt 0:11:19]} Rfd8 {[%emt 0:01:47]} 21. Be2 {[%emt 0:00:58]} Rac8 {[%emt 0:02:40]} 22. Kf2 {[%emt 0:01:11]} Kf8 {[%emt 0:01:18]} 23. Rhd1 {[%emt 0:03:10]} Ke7 {[%emt 0:00:35]} 24. h4 {[%emt 0:06:27]} Ba8 {[%emt 0:05:46]} 25. Bf1 {[%emt 0:06:07]} h6 {[%emt 0:02:16]} 26. Be2 {[%emt 0:00:26]} Rb8 {[%emt 0:04:38]} 27. Bf1 {[%emt 0:02:15]} Rbc8 {[%emt 0:01:05]} 28. Be2 {[%emt 0:00:07]} Rb8 {[%emt 0:00:38]} 29. Bf1 {[%emt 0:01:49]} 1/2-1/2

[Event "22nd ETCC Women 2019"]
[Site "Batumi"]
[Date "2019.10.24"]
[Round "1.2"]
[White "Lagno, Kateryna"]
[Black "Efroimski, Marsel"]
[Result "1-0"]
[ECO "B62"]
[WhiteElo "2549"]
[BlackElo "2317"]
[Annotator "ChessBase"]
[PlyCount "109"]
[EventDate "2019.10.24"]
[EventType "team-tourn"]
[EventCountry "GEO"]
[SourceTitle "playchess.com"]
[Source "ChessBase"]
[SourceQuality "1"]
[WhiteTeam "Russia"]
[BlackTeam "Israel"]
[WhiteTeamCountry "RUS"]
[BlackTeamCountry "ISR"]
[TimeControl "40/5400+30:1800+30"]

1. e4 {[%emt 0:00:00]} c5 {[%emt 0:00:00]} 2. Nf3 {[%emt 0:00:00]} d6 {[%emt 0:00:00]} 3. d4 {[%emt 0:00:06]} cxd4 {[%emt 0:00:00]} 4. Nxd4 {[%emt 0:00:03]} Nf6 {[%emt 0:00:00]} 5. Nc3 {[%emt 0:00:05]} Nc6 {[%emt 0:00:00]} 6. Bg5 {[%emt 0:00:32]} e6 {[%emt 0:00:00]} 7. Bb5 {[%emt 0:00:16]} Bd7 {[%emt 0:00:28]} 8. Qd3 {[%emt 0:00:18]} Be7 {[%emt 0:00:14]} 9. O-O-O {[%emt 0:00:28]} h6 {[%emt 0:00:18]} 10. Bh4 {[%emt 0:00:27]} O-O {[%emt 0:00:08]} 11. Bxc6 {[%emt 0:00:39]} bxc6 {[%emt 0:00:08]} 12. Nb3 {[%emt 0:00:24]} a5 {[%emt 0:00:12]} 13. Bxf6 {[%emt 0:05:17]} gxf6 {[%emt 0:00:11]} 14. Qg3+ {[%emt 0:09:19]} Kh7 {[%emt 0:00:57]} 15. Rxd6 {[%emt 0:00:37]} Bxd6 {[%emt 0:26:31]} 16. Qxd6 {[%emt 0:00:17]} Bc8 {[%emt 0:02:05]} 17. Rd1 {[%emt 0:04:31]} Qxd6 {[%emt 0:12:59]} 18. Rxd6 {[%emt 0:00:11]} Ra7 {[%emt 0:26:34]} 19. Rxc6 {[%emt 0:03:35]} Bd7 {[%emt 0:00:09]} 20. Rd6 {[%emt 0:02:03]} Be8 {[%emt 0:03:51]} 21. a4 {[%emt 0:07:54]} Rg8 {[%emt 0:02:41]} 22. g3 {[%emt 0:01:51]} Kg7 {[%emt 0:00:15]} 23. h4 {[%emt 0:09:38]} Kf8 {[%emt 0:00:34]} 24. Rd8 {[%emt 0:00:44]} Ke7 {[%emt 0:03:34]} 25. Rc8 {[%emt 0:00:56]} Kd7 {[%emt 0:05:38]} 26. Rc5 {[%emt 0:01:06]} Kd6 {[%emt 0:00:31]} 27. Kd2 {[%emt 0:14:43]} Bd7 {[%emt 0:03:52]} 28. Kd3 {[%emt 0:11:35]} Rb8 {[%emt 0:03:12]} 29. Rxa5 {[%emt 0:00:30]} Rxa5 {[%emt 0:01:41]} 30. Nxa5 {[%emt 0:00:07]} Kc5 {[%emt 0:00:58]} 31. b3 {[%emt 0:02:01]} Bc8 {[%emt 0:05:12]} 32. Nb5 {[%emt 0:07:40]} Bd7 {[%emt 0:00:37]} 33. Na3 {[%emt 0:03:25]} e5 {[%emt 0:02:09]} 34. c3 {[%emt 0:01:56]} f5 {[%emt 0:00:47]} 35. N3c4 {[%emt 0:02:09]} fxe4+ {[%emt 0:00:08]} 36. Kxe4 {[%emt 0:00:03]} f5+ {[%emt 0:00:22]} 37. Kxe5 {[%emt 0:01:03]} Re8+ {[%emt 0:00:07]} 38. Kf4 {[%emt 0:06:23]} Re4+ {[%emt 0:00:18]} 39. Kf3 {[%emt 0:00:01]} Be8 {[%emt 0:00:19]} 40. Nb7+ {[%emt 0:00:00]} Kd5 {[%emt 0:00:00]} 41. Nbd6 {[%emt 0:07:26]} Bh5+ {[%emt 0:01:16]} 42. Kg2 {[%emt 0:00:04]} Re1 {[%emt 0:02:43]} 43. Nxf5 {[%emt 0:02:59]} Ke4 {[%emt 0:00:16]} 44. Nd4 {[%emt 0:06:01]} Kd3 {[%emt 0:03:21]} 45. Ne3 {[%emt 0:03:20]} Kxc3 {[%emt 0:02:09]} 46. Ndf5 {[%emt 0:00:40]} Kd3 {[%emt 0:11:34]} 47. Nxh6 {[%emt 0:01:54]} Ke4 {[%emt 0:00:16]} 48. Nhg4 {[%emt 0:00:27]} Kd3 {[%emt 0:02:11]} 49. Nf6 {[%emt 0:02:34]} Bf7 {[%emt 0:00:09]} 50. h5 {[%emt 0:02:10]} Bxb3 {[%emt 0:00:08]} 51. h6 {[%emt 0:01:08]} Bxa4 {[%emt 0:00:09]} 52. h7 {[%emt 0:01:38]} Bc6+ {[%emt 0:00:06]} 53. Nfd5 {[%emt 0:00:35]} Bxd5+ {[%emt 0:00:11]} 54. Nxd5 {[%emt 0:00:04]} Re8 {[%emt 0:00:04]} 55. Nf4+ {[%emt 0:00:10]} 1-0

[Event "22nd ETCC Women 2019"]
[Site "Batumi"]
[Date "2019.10.24"]
[Round "1.2"]
[White "Trippold, Denise"]
[Black "Yildiz Kadioglu, Betul Cemre"]
[Result "0-1"]
[ECO "D02"]
[WhiteElo "2180"]
[BlackElo "2338"]
[Annotator "NA"]
[PlyCount "144"]
[EventDate "2019.10.24"]
[EventType "team-tourn"]
[EventCountry "GEO"]
[SourceTitle "playchess.com"]
[Source "ChessBase"]
[SourceQuality "1"]
[WhiteTeam "Austria"]
[BlackTeam "Turkey"]
[WhiteTeamCountry "AUT"]
[BlackTeamCountry "TUR"]
[TimeControl "40/5400+30:1800+30"]

1. d4 d5 2. Nf3 c5 3. c4 dxc4 4. e3 cxd4 5. Bxc4 Qc7 6. Bb3 dxe3 7. Bxe3 e6 8. O-O Nf6 9. Nc3 a6 10. Rc1 Nc6 11. Nd4 Bd7 12. Ba4 Be7 13. Qf3 O-O 14. Rfd1 Rac8 15. Nce2 b5 16. Bc2 Nxd4 17. Nxd4 Qb8 18. Bg5 Rfd8 19. Re1 Nd5 20. Bxe7 Nxe7 21. Qh5 h6 22. Nf3 Be8 23. Qh4 Nd5 24. Ne5 Nf6 25. Nf3 Rc4 26. Be4 Rxc1 27. Rxc1 Rc8 28. Re1 Qd6 29. Bb1 Rc4 30. Qh3 Qc7 31. Qg3 Qxg3 32. hxg3 Kf8 33. Rd1 Nd5 34. Kf1 Rc7 35. Ne5 Ke7 36. Ke2 a5 37. Be4 Nb6 38. Bd3 Na4 39. Rd2 Rc5 40. Nf3 e5 41. Be4 Bd7 42. Ke3 Be6 43. a3 f5 44. Bb1 Nb6 45. Ke2 g6 46. Nh4 Bc4+ 47. Ke1 Bf7 48. g4 Rc1+ 49. Rd1 Rxd1+ 50. Kxd1 fxg4 51. Nxg6+ Kf6 52. Nh4 Nc4 53. Kc1 Bd5 54. g3 Nd6 55. Kd2 b4 56. axb4 axb4 57. Bc2 Ne4+ 58. Ke3 Nc5 59. Kd2 b3 60. Bb1 Be4 61. Bxe4 Nxe4+ 62. Ke2 Nc5 63. Kd2 Na4 64. Kc1 h5 65. Ng2 Kf5 66. Ne3+ Ke4 67. Nd1 Kd3 68. Ne3 Ke2 69. Nd1 Ke1 70. Nc3 Nxc3 71. bxc3 Kxf2 72. c4 e4 0-1

[Event "22nd ETCC Women 2019"]
[Site "Batumi"]
[Date "2019.10.24"]
[Round "1.3"]
[White "Ozturk, Kubra"]
[Black "Novkovic, Julia"]
[Result "1-0"]
[ECO "A42"]
[WhiteElo "2317"]
[BlackElo "2146"]
[Annotator "NA"]
[PlyCount "95"]
[EventDate "2019.10.24"]
[EventType "team-tourn"]
[EventCountry "GEO"]
[SourceTitle "playchess.com"]
[Source "ChessBase"]
[SourceQuality "1"]
[WhiteTeam "Turkey"]
[BlackTeam "Austria"]
[WhiteTeamCountry "TUR"]
[BlackTeamCountry "AUT"]
[TimeControl "40/5400+30:1800+30"]

1. d4 {[%emt 0:00:00]} g6 {[%emt 0:00:00]} 2. c4 {[%emt 0:00:00]} Bg7 {[%emt 0:00:00]} 3. e4 {[%emt 0:00:24]} d6 {[%emt 0:00:00]} 4. Nc3 {[%emt 0:00:36]} Nc6 {[%emt 0:00:37]} 5. Be3 {[%emt 0:05:38]} e5 {[%emt 0:00:24]} 6. Nge2 {[%emt 0:08:32]} f5 {[%emt 0:01:08]} 7. exf5 {[%emt 0:07:12]} Bxf5 {[%emt 0:08:50]} 8. d5 {[%emt 0:03:21]} Nce7 {[%emt 0:04:50]} 9. Ng3 {[%emt 0:01:32]} Bh6 {[%emt 0:00:38]} 10. Bd3 {[%emt 0:09:28]} Bxe3 {[%emt 0:08:15]} 11. fxe3 {[%emt 0:00:11]} Nh6 {[%emt 0:02:58]} 12. O-O {[%emt 0:09:16]} O-O {[%emt 0:01:06]} 13. Nce4 {[%emt 0:15:13]} Bxe4 {[%emt 0:10:36]} 14. Nxe4 {[%emt 0:07:46]} Nef5 {[%emt 0:09:12]} 15. Qe2 {[%emt 0:01:13]} Qe7 {[%emt 0:08:24]} 16. Rf2 {[%emt 0:03:42]} Ng7 {[%emt 0:01:30]} 17. Raf1 {[%emt 0:01:36]} Rxf2 {[%emt 0:00:22]} 18. Qxf2 {[%emt 0:02:31]} Nh5 {[%emt 0:00:34]} 19. Be2 {[%emt 0:03:19]} Ng7 {[%emt 0:12:03]} 20. g4 {[%emt 0:01:33]} Kh8 {[%emt 0:02:26]} 21. h4 {[%emt 0:04:14]} Rg8 {[%emt 0:00:30]} 22. Ng5 {[%emt 0:01:45]} Re8 {[%emt 0:02:59]} 23. Kg2 {[%emt 0:02:11]} c6 {[%emt 0:02:47]} 24. Qf6 {[%emt 0:04:37]} Qxf6 {[%emt 0:06:29]} 25. Rxf6 {[%emt 0:00:02]} cxd5 {[%emt 0:00:13]} 26. cxd5 {[%emt 0:00:47]} Rd8 {[%emt 0:01:29]} 27. Rf7 {[%emt 0:00:34]} Rb8 {[%emt 0:04:11]} 28. Rd7 {[%emt 0:00:10]} Kg8 {[%emt 0:01:15]} 29. Rxd6 {[%emt 0:00:49]} Ne8 {[%emt 0:02:02]} 30. Re6 {[%emt 0:00:44]} Rc8 {[%emt 0:02:34]} 31. d6 {[%emt 0:02:11]} Rd8 {[%emt 0:03:09]} 32. Bc4 {[%emt 0:00:26]} Kh8 {[%emt 0:00:05]} 33. Re7 {[%emt 0:02:18]} Nf6 {[%emt 0:00:31]} 34. Rxb7 {[%emt 0:00:18]} Rxd6 {[%emt 0:01:06]} 35. Rb8+ {[%emt 0:00:24]} Kg7 {[%emt 0:00:36]} 36. Ne6+ {[%emt 0:00:27]} Kf7 {[%emt 0:00:39]} 37. g5 {[%emt 0:00:23]} Rd2+ {[%emt 0:01:23]} 38. Kf1 {[%emt 0:00:33]} Nfg4 {[%emt 0:00:35]} 39. Rb7+ {[%emt 0:01:15]} Kg8 {[%emt 0:00:57]} 40. Ke1 {[%emt 0:00:00]} Rc2 {[%emt 0:00:00]} 41. Bb3 {[%emt 0:01:43]} Rh2 {[%emt 0:11:54]} 42. gxh6 {[%emt 0:00:54]} Nxh6 {[%emt 0:02:26]} 43. Ng5+ {[%emt 0:01:49]} Kf8 {[%emt 0:00:06]} 44. Nxh7+ {[%emt 0:00:22]} Ke8 {[%emt 0:00:37]} 45. Nf6+ {[%emt 0:00:30]} Kd8 {[%emt 0:00:44]} 46. Be6 {[%emt 0:00:51]} Rh1+ {[%emt 0:04:05]} 47. Kd2 {[%emt 0:00:11]} Nf5 {[%emt 0:01:53]} 48. Nd5 {[%emt 0:00:16]} 1-0

[Event "22nd ETCC Women 2019"]
[Site "Batumi"]
[Date "2019.10.24"]
[Round "1.3"]
[White "Lahav, Michal"]
[Black "Girya, Olga"]
[Result "0-1"]
[ECO "B11"]
[WhiteElo "2221"]
[BlackElo "2476"]
[Annotator "ChessBase"]
[PlyCount "106"]
[EventDate "2019.10.24"]
[EventType "team-tourn"]
[EventCountry "GEO"]
[SourceTitle "playchess.com"]
[Source "ChessBase"]
[SourceQuality "1"]
[WhiteTeam "Israel"]
[BlackTeam "Russia"]
[WhiteTeamCountry "ISR"]
[BlackTeamCountry "RUS"]
[TimeControl "40/5400+30:1800+30"]

1. e4 {[%emt 0:00:00]} c6 {[%emt 0:00:00]} 2. Nc3 {[%emt 0:00:00]} d5 {[%emt 0:00:00]} 3. Nf3 {[%emt 0:00:00]} Bg4 {[%emt 0:00:05]} 4. h3 {[%emt 0:00:04]} Bxf3 {[%emt 0:00:11]} 5. Qxf3 {[%emt 0:00:26]} Nf6 {[%emt 0:00:16]} 6. Be2 {[%emt 0:00:44]} e6 {[%emt 0:00:07]} 7. O-O {[%emt 0:00:38]} Bc5 {[%emt 0:00:25]} 8. Rd1 {[%emt 0:00:18]} Bd4 {[%emt 0:00:20]} 9. Qf4 {[%emt 0:00:47]} Bxc3 {[%emt 0:00:40]} 10. bxc3 {[%emt 0:00:12]} Nxe4 {[%emt 0:00:03]} 11. Rb1 {[%emt 0:00:27]} Qe7 {[%emt 0:00:59]} 12. Bf3 {[%emt 0:00:57]} Ng5 {[%emt 0:12:29]} 13. Bh5 {[%emt 0:00:53]} O-O {[%emt 0:01:05]} 14. d3 {[%emt 0:01:03]} f6 {[%emt 0:02:14]} 15. Re1 {[%emt 0:02:15]} Nf7 {[%emt 0:04:55]} 16. Qb4 {[%emt 0:18:47]} Qxb4 {[%emt 0:03:19]} 17. Rxb4 {[%emt 0:01:19]} Nd8 {[%emt 0:00:46]} 18. Ba3 {[%emt 0:04:10]} g6 {[%emt 0:06:03]} 19. Bg4 {[%emt 0:02:16]} Re8 {[%emt 0:03:27]} 20. c4 {[%emt 0:16:49]} Nd7 {[%emt 0:20:40]} 21. cxd5 {[%emt 0:10:31]} cxd5 {[%emt 0:00:06]} 22. f4 {[%emt 0:04:53]} Rc8 {[%emt 0:02:03]} 23. Bf3 {[%emt 0:00:38]} Nb6 {[%emt 0:05:24]} 24. Bd1 {[%emt 0:08:16]} Kf7 {[%emt 0:06:02]} 25. Bc1 {[%emt 0:04:58]} Re7 {[%emt 0:02:58]} 26. Ba3 {[%emt 0:07:42]} Rec7 {[%emt 0:01:59]} 27. Rb3 {[%emt 0:12:02]} Na4 {[%emt 0:02:21]} 28. c4 {[%emt 0:01:28]} Nc5 {[%emt 0:06:06]} 29. Bxc5 {[%emt 0:01:04]} Rxc5 {[%emt 0:00:08]} 30. cxd5 {[%emt 0:00:41]} Rxd5 {[%emt 0:00:07]} 31. Kf2 {[%emt 0:00:39]} b6 {[%emt 0:03:09]} 32. Ra3 {[%emt 0:00:05]} Rc7 {[%emt 0:00:18]} 33. Bb3 {[%emt 0:00:29]} Rd6 {[%emt 0:06:20]} 34. Bc4 {[%emt 0:00:51]} Nc6 {[%emt 0:00:52]} 35. Ke3 {[%emt 0:00:36]} Nb4 {[%emt 0:01:10]} 36. Re2 {[%emt 0:00:25]} a5 {[%emt 0:07:06]} 37. Kf2 {[%emt 0:00:31]} Rc5 {[%emt 0:01:02]} 38. Rb2 {[%emt 0:00:03]} b5 {[%emt 0:02:05]} 39. Rxa5 {[%emt 0:00:28]} Rxc4 {[%emt 0:00:28]} 40. Ra7+ {[%emt 0:00:00]} Ke8 {[%emt 0:00:00]} 41. dxc4 {[%emt 0:05:19]} Nd3+ {[%emt 0:01:21]} 42. Ke2 {[%emt 0:00:10]} Nxb2 {[%emt 0:00:04]} 43. cxb5 {[%emt 0:00:03]} Nc4 {[%emt 0:03:51]} 44. a4 {[%emt 0:02:08]} Rd7 {[%emt 0:06:08]} 45. Ra8+ {[%emt 0:00:58]} Ke7 {[%emt 0:00:01]} 46. a5 {[%emt 0:03:01]} Rd2+ {[%emt 0:02:52]} 47. Kf3 {[%emt 0:00:50]} Ra2 {[%emt 0:00:15]} 48. a6 {[%emt 0:03:31]} Ra3+ {[%emt 0:00:15]} 49. Kf2 {[%emt 0:01:27]} Kd6 {[%emt 0:01:31]} 50. Rc8 {[%emt 0:01:48]} Kd5 {[%emt 0:00:19]} 51. Rc6 {[%emt 0:11:39]} Ra5 {[%emt 0:01:14]} 52. Rc8 {[%emt 0:03:01]} Nd6 {[%emt 0:01:03]} 53. b6 {[%emt 0:03:29]} Rxa6 {[%emt 0:00:09]} 0-1

[Event "22nd ETCC Women 2019"]
[Site "Batumi"]
[Date "2019.10.24"]
[Round "1.4"]
[White "Gunina, Valentina"]
[Black "Nesterovskaya, Anzhelika"]
[Result "1-0"]
[ECO "A80"]
[WhiteElo "2509"]
[BlackElo "2124"]
[Annotator "ChessBase"]
[PlyCount "75"]
[EventDate "2019.10.24"]
[EventType "team-tourn"]
[EventCountry "GEO"]
[SourceTitle "playchess.com"]
[Source "ChessBase"]
[SourceQuality "1"]
[WhiteTeam "Russia"]
[BlackTeam "Israel"]
[WhiteTeamCountry "RUS"]
[BlackTeamCountry "ISR"]
[TimeControl "40/5400+30:1800+30"]

1. d4 {[%emt 0:00:00]} f5 {[%emt 0:00:00]} 2. Nc3 {[%emt 0:00:45]} Nf6 {[%emt 0:01:07]} 3. Bg5 {[%emt 0:00:19]} d5 {[%emt 0:01:17]} 4. e3 {[%emt 0:03:50]} g6 {[%emt 0:08:39]} 5. h4 {[%emt 0:02:05]} Be6 {[%emt 0:10:22]} 6. Nh3 {[%emt 0:03:41]} Bf7 {[%emt 0:12:00]} 7. Nf4 {[%emt 0:06:27]} Bg7 {[%emt 0:12:40]} 8. h5 {[%emt 0:00:54]} Nbd7 {[%emt 0:05:36]} 9. Be2 {[%emt 0:02:38]} c6 {[%emt 0:02:51]} 10. g4 {[%emt 0:06:46]} Qa5 {[%emt 0:03:42]} 11. gxf5 {[%emt 0:04:36]} gxf5 {[%emt 0:02:11]} 12. Qd2 {[%emt 0:00:25]} O-O-O {[%emt 0:03:01]} 13. Nd3 {[%emt 0:00:58]} h6 {[%emt 0:01:31]} 14. Bf4 {[%emt 0:00:34]} Rde8 {[%emt 0:02:18]} 15. b4 {[%emt 0:04:48]} Qd8 {[%emt 0:02:09]} 16. Nb5 {[%emt 0:08:10]} Qb6 {[%emt 0:05:27]} 17. Nc7 {[%emt 0:05:10]} Ne4 {[%emt 0:01:01]} 18. Qc1 {[%emt 0:00:09]} Reg8 {[%emt 0:01:19]} 19. Na8 {[%emt 0:01:41]} Qd8 {[%emt 0:01:33]} 20. Qa3 {[%emt 0:00:47]} e5 {[%emt 0:03:06]} 21. dxe5 {[%emt 0:01:11]} Kb8 {[%emt 0:00:03]} 22. Nc7 {[%emt 0:03:12]} Qxc7 {[%emt 0:01:48]} 23. e6 {[%emt 0:01:01]} Nd6 {[%emt 0:00:30]} 24. exf7 {[%emt 0:02:00]} Rf8 {[%emt 0:00:42]} 25. Nc5 {[%emt 0:01:18]} Ne5 {[%emt 0:08:16]} 26. b5 {[%emt 0:00:48]} Rxf7 {[%emt 0:02:22]} 27. Ne6 {[%emt 0:02:21]} Qe7 {[%emt 0:00:00]} 28. Nxg7 {[%emt 0:00:06]} Rxg7 {[%emt 0:00:04]} 29. bxc6 {[%emt 0:00:42]} bxc6 {[%emt 0:00:44]} 30. Qc3 {[%emt 0:02:27]} Re8 {[%emt 0:04:50]} 31. Rb1+ {[%emt 0:00:43]} Kc8 {[%emt 0:01:13]} 32. Bxh6 {[%emt 0:04:09]} Rgg8 {[%emt 0:00:47]} 33. Bf4 {[%emt 0:00:07]} Kd7 {[%emt 0:00:55]} 34. h6 {[%emt 0:00:21]} Qf6 {[%emt 0:00:13]} 35. Qa5 {[%emt 0:01:10]} Nec4 {[%emt 0:00:56]} 36. Bxc4 {[%emt 0:00:32]} dxc4 {[%emt 0:01:30]} 37. h7 {[%emt 0:00:36]} Rg6 {[%emt 0:00:33]} 38. Rd1 {[%emt 0:00:19]} 1-0

[Event "22nd ETCC Women 2019"]
[Site "Batumi"]
[Date "2019.10.24"]
[Round "1.4"]
[White "Teuschler, Barbara"]
[Black "Caglar, Sila"]
[Result "0-1"]
[ECO "B06"]
[WhiteElo "2136"]
[BlackElo "2242"]
[Annotator "NA"]
[PlyCount "48"]
[EventDate "2019.10.24"]
[EventType "team-tourn"]
[EventCountry "GEO"]
[SourceTitle "playchess.com"]
[Source "ChessBase"]
[SourceQuality "1"]
[WhiteTeam "Austria"]
[BlackTeam "Turkey"]
[WhiteTeamCountry "AUT"]
[BlackTeamCountry "TUR"]
[TimeControl "40/5400+30:1800+30"]

1. e4 {[%emt 0:00:00]} g6 {[%emt 0:00:00]} 2. d4 {[%emt 0:00:00]} Bg7 {[%emt 0:00:00]} 3. Nc3 {[%emt 0:00:00]} d6 {[%emt 0:00:00]} 4. Be3 {[%emt 0:00:07]} Nf6 {[%emt 0:00:00]} 5. Qd2 {[%emt 0:00:46]} O-O {[%emt 0:01:43]} 6. Bh6 {[%emt 0:02:41]} c5 {[%emt 0:02:21]} 7. Bxg7 {[%emt 0:03:35]} Kxg7 {[%emt 0:00:18]} 8. O-O-O {[%emt 0:05:56]} cxd4 {[%emt 0:02:09]} 9. Qxd4 {[%emt 0:00:02]} Nc6 {[%emt 0:00:13]} 10. Qe3 {[%emt 0:02:48]} Be6 {[%emt 0:02:37]} 11. Kb1 {[%emt 0:18:33]} Qa5 {[%emt 0:02:58]} 12. Nge2 {[%emt 0:04:18]} b5 {[%emt 0:05:35]} 13. Nd5 {[%emt 0:15:38]} Rac8 {[%emt 0:05:33]} 14. a3 {[%emt 0:19:05]} b4 {[%emt 0:08:33]} 15. Nxf6 {[%emt 0:00:25]} exf6 {[%emt 0:00:44]} 16. Nd4 {[%emt 0:05:12]} Nxd4 {[%emt 0:03:19]} 17. Rxd4 {[%emt 0:00:01]} bxa3 {[%emt 0:00:17]} 18. Qd2 {[%emt 0:04:14]} Qc5 {[%emt 0:02:38]} 19. b3 {[%emt 0:00:00]} a2+ {[%emt 0:03:55]} 20. Kxa2 {[%emt 0:00:20]} Qxc2+ {[%emt 0:00:11]} 21. Qxc2 {[%emt 0:00:01]} Rxc2+ {[%emt 0:00:06]} 22. Ka3 {[%emt 0:00:37]} Rxf2 {[%emt 0:00:15]} 23. Rxd6 {[%emt 0:01:15]} Rc8 {[%emt 0:00:47]} 24. Bd3 {[%emt 0:02:31]} Rc3 {[%emt 0:00:42]} 0-1

[Event "22nd ETCC Women 2019"]
[Site "Batumi"]
[Date "2019.10.24"]
[Round "1.5"]
[White "Dzagnidze, Nana"]
[Black "Worek, Joanna"]
[Result "1-0"]
[ECO "A18"]
[WhiteElo "2502"]
[BlackElo "2319"]
[Annotator "ChessBase"]
[PlyCount "123"]
[EventDate "2019.10.24"]
[EventType "team-tourn"]
[EventCountry "GEO"]
[SourceTitle "playchess.com"]
[Source "ChessBase"]
[SourceQuality "1"]
[WhiteTeam "Georgia"]
[BlackTeam "Czech Republic"]
[WhiteTeamCountry "GEO"]
[BlackTeamCountry "CZE"]
[TimeControl "40/5400+30:1800+30"]

1. c4 {[%emt 0:00:00]} Nf6 {[%emt 0:00:00]} 2. Nc3 {[%emt 0:00:09]} e6 {[%emt 0:00:00]} 3. e4 {[%emt 0:01:29]} d5 {[%emt 0:03:04]} 4. e5 {[%emt 0:00:48]} d4 {[%emt 0:00:25]} 5. exf6 {[%emt 0:00:21]} dxc3 {[%emt 0:00:04]} 6. bxc3 {[%emt 0:00:24]} Qxf6 {[%emt 0:00:38]} 7. Nf3 {[%emt 0:00:15]} Bd6 {[%emt 0:03:47]} 8. d4 {[%emt 0:00:46]} h6 {[%emt 0:07:03]} 9. c5 {[%emt 0:09:58]} Bf4 {[%emt 0:01:25]} 10. Bb2 {[%emt 0:01:07]} c6 {[%emt 0:01:11]} 11. Bd3 {[%emt 0:02:23]} O-O {[%emt 0:03:02]} 12. Qe2 {[%emt 0:06:14]} Re8 {[%emt 0:14:42]} 13. c4 {[%emt 0:02:51]} Bc7 {[%emt 0:04:07]} 14. O-O {[%emt 0:04:13]} Nd7 {[%emt 0:05:16]} 15. a4 {[%emt 0:07:35]} Qe7 {[%emt 0:04:14]} 16. a5 {[%emt 0:12:20]} Nf6 {[%emt 0:08:47]} 17. Bc3 {[%emt 0:03:23]} Bd7 {[%emt 0:00:47]} 18. Ne5 {[%emt 0:01:57]} b6 {[%emt 0:04:13]} 19. cxb6 {[%emt 0:11:52]} axb6 {[%emt 0:00:17]} 20. a6 {[%emt 0:00:18]} c5 {[%emt 0:04:32]} 21. dxc5 {[%emt 0:03:25]} Qxc5 {[%emt 0:05:45]} 22. Rfd1 {[%emt 0:05:50]} Bc8 {[%emt 0:02:41]} 23. Ng4 {[%emt 0:05:48]} Nxg4 {[%emt 0:06:51]} 24. Qxg4 {[%emt 0:00:06]} Be5 {[%emt 0:00:03]} 25. Qe4 {[%emt 0:07:24]} Bxc3 {[%emt 0:00:05]} 26. Qxa8 {[%emt 0:00:12]} Bxa1 {[%emt 0:05:41]} 27. a7 {[%emt 0:04:49]} Be5 {[%emt 0:01:59]} 28. Qf3 {[%emt 0:01:29]} Ba6 {[%emt 0:07:31]} 29. a8=Q {[%emt 0:00:29]} Rxa8 {[%emt 0:00:03]} 30. Qxa8+ {[%emt 0:00:06]} Bc8 {[%emt 0:00:02]} 31. Be4 {[%emt 0:02:20]} Qc7 {[%emt 0:00:32]} 32. g3 {[%emt 0:03:37]} f5 {[%emt 0:00:10]} 33. Bb7 {[%emt 0:00:38]} Qxb7 {[%emt 0:00:17]} 34. Rd8+ {[%emt 0:00:04]} Kf7 {[%emt 0:02:31]} 35. Qxc8 {[%emt 0:00:59]} Qxc8 {[%emt 0:00:20]} 36. Rxc8 {[%emt 0:00:05]} g5 {[%emt 0:01:01]} 37. Kg2 {[%emt 0:01:56]} Bd4 {[%emt 0:02:02]} 38. f3 {[%emt 0:00:27]} Kg6 {[%emt 0:02:10]} 39. g4 {[%emt 0:00:30]} Kf7 {[%emt 0:00:42]} 40. Kf1 {[%emt 0:00:00]} Bc5 {[%emt 0:00:00]} 41. Ke2 {[%emt 0:00:42]} Bg1 {[%emt 0:03:11]} 42. h3 {[%emt 0:04:54]} Kg6 {[%emt 0:00:51]} 43. Kd3 {[%emt 0:01:10]} Bf2 {[%emt 0:04:27]} 44. Rc6 {[%emt 0:09:03]} Kf6 {[%emt 0:01:19]} 45. Kc3 {[%emt 0:00:24]} Bc5 {[%emt 0:01:49]} 46. Kb3 {[%emt 0:03:58]} Ke5 {[%emt 0:00:04]} 47. Ka4 {[%emt 0:00:09]} fxg4 {[%emt 0:02:04]} 48. fxg4 {[%emt 0:01:25]} Kd4 {[%emt 0:00:04]} 49. Kb5 {[%emt 0:05:26]} e5 {[%emt 0:00:08]} 50. Rxh6 {[%emt 0:00:05]} e4 {[%emt 0:00:14]} 51. h4 {[%emt 0:00:13]} gxh4 {[%emt 0:00:09]} 52. g5 {[%emt 0:01:33]} Ke5 {[%emt 0:02:01]} 53. Rxh4 {[%emt 0:01:25]} e3 {[%emt 0:00:57]} 54. g6 {[%emt 0:01:45]} Kf6 {[%emt 0:00:33]} 55. Rg4 {[%emt 0:00:10]} Kg7 {[%emt 0:01:02]} 56. Kc6 {[%emt 0:01:23]} Bb4 {[%emt 0:01:20]} 57. Re4 {[%emt 0:01:11]} Bc5 {[%emt 0:00:24]} 58. Re6 {[%emt 0:00:08]} Bd4 {[%emt 0:00:08]} 59. Kd5 {[%emt 0:00:09]} Bc5 {[%emt 0:00:13]} 60. Ke4 {[%emt 0:00:46]} Kh6 {[%emt 0:01:42]} 61. Kf5 {[%emt 0:00:17]} Kg7 {[%emt 0:00:22]} 62. Re4 {[%emt 0:00:07]} 1-0